fUSD/lending_fUSD_20250503
["ID","MTS","AMOUNT","RATE_DAILY","PERIOD"]
[359680218,1746246639850,-1000.0,0.00019577,2]
[359680219,1746246639859,-1000.0,0.00019577,2]
[359680220,1746246639868,-1000.0,0.00019577,2]
[359680221,1746246639878,-1000.0,0.00019577,2]
[359680222,1746246639887,-1000.0,0.00019577,2]
[359680223,1746246639897,-1000.0,0.00019577,2]
[359680224,1746246639906,-1000.0,0.00019577,2]
[359680225,1746246639916,-1000.0,0.00019577,2]
[359680226,1746246639925,-1000.0,0.00019577,2]
[359680227,1746246639935,-1000.0,0.00019577,2]
[359680228,1746246639944,-1000.0,0.00019577,2]
[359680229,1746246639954,-1000.0,0.00019577,2]
[359680230,1746246639963,-1000.0,0.00019577,2]
[359680231,1746246639974,-1000.0,0.00019577,2]
[359680232,1746246639987,-1000.0,0.00019577,2]
[359680233,1746246639996,-2295.92314272,0.00019577,2]
[359680234,1746246640006,-450.0,0.00019577,2]
[359680235,1746246640017,-450.0,0.00019577,2]
[359680236,1746246640026,-450.0,0.00019577,2]
[359680237,1746246640036,-450.0,0.00019577,2]
[359680238,1746246640045,-529.0,0.00019577,2]
[359680239,1746246640055,-450.0,0.00019577,2]
[359680240,1746246640066,-414.13707132,0.00019577,2]
[359680241,1746246640078,-450.0,0.00019577,2]
[359680242,1746246640089,-450.0,0.00019577,2]
[359680243,1746246640099,-450.0,0.00019577,2]
[359680244,1746246640109,-450.0,0.00019577,2]
[359680245,1746246640126,-450.0,0.00019577,2]
[359680246,1746246640136,-450.0,0.00019577,2]
[359680247,1746246640145,-387.79334774,0.00019577,2]
[359680248,1746246640155,-450.0,0.00019577,2]
[359680249,1746246640164,-450.0,0.00019577,2]
[359680250,1746246640174,-850.24,0.00019577,2]
[359680255,1746246640422,-846.333231,0.00019577,2]
[359680256,1746246640432,-450.0,0.00019577,2]
[359680257,1746246640441,-450.0,0.00019577,2]
[359680258,1746246640450,-450.0,0.00019577,2]
[359680259,1746246640460,-561.14347333,0.00019577,2]
[359680260,1746246640469,-450.0,0.00019577,2]
[359680261,1746246640479,-450.0,0.00019577,2]
[359680262,1746246640488,-617.722084,0.00019577,2]
[359680263,1746246640498,-450.0,0.00019577,2]
[359680264,1746246640507,-450.0,0.00019577,2]
[359680265,1746246640516,-450.0,0.00019577,2]
[359680266,1746246640526,-652.98,0.00019577,2]
[359680267,1746246640537,-450.0,0.00019577,2]
[359680268,1746246640548,-450.0,0.00019577,2]
[359680269,1746246640557,-450.0,0.00019577,2]
[359680270,1746246640566,-450.0,0.00019577,2]
[359680271,1746246640575,-450.0,0.00019577,2]
[359680272,1746246640584,-450.0,0.00019577,2]
[359680273,1746246640594,-450.0,0.00019577,2]
[359680274,1746246640602,-450.0,0.00019577,2]
[359680275,1746246640612,-450.0,0.00019577,2]
[359680276,1746246640621,-450.0,0.00019577,2]
[359680277,1746246640630,-282.111077,0.00019577,2]
[359680278,1746246640640,-450.0,0.00019577,2]
[359680279,1746246640650,-450.0,0.00019577,2]
[359680280,1746246640660,-450.0,0.00019577,2]
[359680281,1746246640669,-450.0,0.00019577,2]
[359680282,1746246640679,-205.907361,0.00019577,2]
[359680283,1746246640688,-450.0,0.00019577,2]
[359680284,1746246640697,-450.0,0.00019577,2]
[359680285,1746246640706,-450.0,0.00019577,2]
[359680286,1746246640715,-450.0,0.00019577,2]
[359680287,1746246640725,-450.0,0.00019577,2]
[359680288,1746246640735,-476.41,0.00019577,2]
[359680289,1746246640744,-775.19,0.00019577,2]
[359680290,1746246640754,-450.0,0.00019577,2]
[359680291,1746246640764,-956.33,0.00019577,2]
[359680292,1746246640773,-610.14,0.00019577,2]
[359680293,1746246640784,-450.0,0.00019577,2]
[359680294,1746246640795,-5216.27,0.00019577,2]
[359680295,1746246640805,-450.0,0.00019577,2]
[359680296,1746246640816,-450.0,0.00019577,2]
[359680297,1746246640825,-418.70387019,0.00019577,2]
[359680298,1746246640834,-450.0,0.00019577,2]
[359680299,1746246640844,-528.12811078,0.00019577,2]
[359680300,1746246640853,-450.0,0.00019577,2]
[359680301,1746246640863,-450.0,0.00019577,2]
[359680302,1746246640873,-450.0,0.00019577,2]
[359680303,1746246640883,-450.0,0.00019577,2]
[359680304,1746246640894,-450.0,0.00019577,2]
[359680305,1746246640904,-450.0,0.00019577,2]
[359680306,1746246640914,-450.0,0.00019577,2]
[359680307,1746246640924,-450.0,0.00019577,2]
[359680308,1746246640934,-598.05,0.00019577,2]
[359680309,1746246640943,-450.0,0.00019577,2]
[359680310,1746246640953,-465.22,0.00019577,2]
[359680311,1746246640963,-677.78,0.00019577,2]
[359680312,1746246640972,-111044.15,0.00019577,2]
[359680313,1746246640983,-450.0,0.00019577,2]
[359680314,1746246640993,-2191.12,0.00019577,2]
[359680315,1746246641003,-450.0,0.00019577,2]
[359680316,1746246641012,-521.16,0.00019577,2]
[359680317,1746246641021,-450.0,0.00019577,2]
[359680318,1746246641032,-450.0,0.00019577,2]
[359680319,1746246641042,-450.0,0.00019577,2]
[359680320,1746246641051,-450.0,0.00019577,2]
[359680321,1746246641061,-450.0,0.00019577,2]
[359680322,1746246641070,-450.0,0.00019577,2]
[359680323,1746246641079,-450.0,0.00019577,2]
[359680324,1746246641088,-450.0,0.00019577,2]
[359680325,1746246641097,-450.0,0.00019577,2]
[359680326,1746246641107,-450.0,0.00019577,2]
[359680327,1746246641117,-450.0,0.00019577,2]
[359680328,1746246641126,-450.0,0.00019577,2]
[359680329,1746246641135,-450.0,0.00019577,2]
[359680330,1746246641145,-465.11,0.00019577,2]
[359680331,1746246641154,-450.0,0.00019577,2]
[359680332,1746246641164,-1225.07,0.00019577,2]
[359680333,1746246641173,-569.96,0.00019577,2]
[359680334,1746246641183,-450.0,0.00019577,2]
[359680335,1746246641192,-450.0,0.00019577,2]
[359680336,1746246641202,-1896.61,0.00019577,2]
[359680337,1746246641211,-450.0,0.00019577,2]
[359680338,1746246641222,-1395.96,0.00019577,2]
[359680339,1746246641232,-450.0,0.00019577,2]
[359680340,1746246641242,-450.0,0.00019577,2]
[359680341,1746246641253,-667.6,0.00019577,2]
[359680342,1746246641264,-450.0,0.00019577,2]
[359680343,1746246641274,-450.0,0.00019577,2]
[359680344,1746246641283,-450.0,0.00019577,2]
[359680345,1746246641293,-525.84,0.00019577,2]
[359680346,1746246641302,-450.0,0.00019577,2]
[359680347,1746246641311,-450.0,0.00019577,2]
[359680348,1746246641321,-476.17,0.00019577,2]
[359680349,1746246641331,-450.0,0.00019577,2]
[359680350,1746246641341,-477.9,0.00019577,2]
[359680351,1746246641351,-4356.18,0.00019577,2]
[359680352,1746246641361,-450.0,0.00019577,2]
[359680353,1746246641370,-3257.3,0.00019577,2]
[359680354,1746246641379,-985.77,0.00019577,2]
[359680355,1746246641390,-450.0,0.00019577,2]
[359680356,1746246641400,-525.43,0.00019577,2]
[359680357,1746246641410,-1136.7,0.00019577,2]
[359680358,1746246641420,-450.0,0.00019577,2]
[359680359,1746246641430,-1521.3,0.00019577,2]
[359680360,1746246641439,-576.9,0.00019577,2]
[359680361,1746246641449,-450.0,0.00019577,2]
[359680362,1746246641461,-450.0,0.00019577,2]
[359680363,1746246641472,-395.39490778,0.00019577,2]
[359680364,1746246641481,-2975.0,0.00019577,2]
[359680365,1746246641491,-450.0,0.00019577,2]
[359680366,1746246641500,-849.23,0.00019577,2]
[359680367,1746246641510,-450.0,0.00019577,2]
[359680368,1746246641519,-450.0,0.00019577,2]
[359680369,1746246641528,-450.0,0.00019577,2]
[359680370,1746246641538,-457.5,0.00019577,2]
[359680371,1746246641547,-450.0,0.00019577,2]
[359680372,1746246641557,-601.02,0.00019577,2]
[359680373,1746246641567,-450.0,0.00019577,2]
[359680374,1746246641576,-450.0,0.00019577,2]
[359680375,1746246641585,-450.0,0.00019577,2]
[359680376,1746246641595,-450.0,0.00019577,2]
[359680377,1746246641604,-500.59,0.00019577,2]
[359680378,1746246641614,-450.0,0.00019577,2]
[359680379,1746246641623,-450.0,0.00019577,2]
[359680380,1746246641632,-588.25,0.00019577,2]
[359680381,1746246641642,-977.01,0.00019577,2]
[359680382,1746246641651,-450.0,0.00019577,2]
[359680383,1746246641660,-450.0,0.00019577,2]
[359680384,1746246641670,-835.69,0.00019577,2]
[359680385,1746246641679,-450.0,0.00019577,2]
[359680386,1746246641689,-450.0,0.00019577,2]
[359680387,1746246641698,-1555.07,0.00019577,2]
[359680388,1746246641707,-450.0,0.00019577,2]
[359680389,1746246641717,-755.94,0.00019577,2]
[359680390,1746246641726,-1495.39,0.00019577,2]
[359680391,1746246641735,-450.0,0.00019577,2]
[359680392,1746246641744,-3995.65,0.00019577,2]
[359680393,1746246641754,-529.78928757,0.00019577,2]
[359680394,1746246641763,-450.0,0.00019577,2]
[359680395,1746246641772,-450.0,0.00019577,2]
[359680396,1746246641782,-476.36,0.00019577,2]
[359680397,1746246641791,-462.15,0.00019577,2]
[359680398,1746246641800,-450.0,0.00019577,2]
[359680399,1746246641809,-450.0,0.00019577,2]
[359680400,1746246641818,-4605.11,0.00019577,2]
[359680401,1746246641827,-647.64,0.00019577,2]
[359680402,1746246641837,-5577.23,0.00019577,2]
[359680403,1746246641847,-450.0,0.00019577,2]
[359680404,1746246641856,-4104.92,0.00019577,2]
[359680405,1746246641866,-477.38,0.00019577,2]
[359680406,1746246641878,-450.0,0.00019577,2]
[359680407,1746246641888,-450.0,0.00019577,2]
[359680408,1746246641898,-500.0,0.00019577,2]
[359680409,1746246641907,-551.88971904,0.00019577,2]
[359680410,1746246641918,-500.0,0.00019577,2]
[359680411,1746246641928,-215.09559388,0.00019577,2]
[359680412,1746246641939,-450.0,0.00019577,2]
[359680413,1746246641949,-450.0,0.00019578,2]
[359680414,1746246641958,-312.08845555,0.00019578,2]
[359680415,1746246641968,-450.0,0.00019578,2]
[359680416,1746246641980,-450.0,0.00019578,2]
[359680417,1746246641995,-450.0,0.00019578,2]
[359680418,1746246642005,-450.0,0.00019578,2]
[359680419,1746246642014,-450.0,0.00019578,2]
[359680420,1746246642024,-450.0,0.00019578,2]
[359680421,1746246642034,-450.0,0.00019578,2]
[359680422,1746246642044,-450.0,0.00019578,2]
[359680423,1746246642053,-450.0,0.00019578,2]
[359680424,1746246642065,-450.0,0.00019578,2]
[359680425,1746246642075,-450.0,0.00019578,2]
[359680426,1746246642085,-450.0,0.00019578,2]
[359680427,1746246642094,-450.0,0.00019578,2]
[359680428,1746246642103,-450.0,0.00019578,2]
[359680429,1746246642113,-450.0,0.00019578,2]
[359680430,1746246642122,-450.0,0.00019578,2]
[359680431,1746246642132,-450.0,0.00019578,2]
[359680432,1746246642142,-450.0,0.00019578,2]
[359680433,1746246642150,-466.66,0.00019578,2]
[359680434,1746246642160,-450.0,0.00019578,2]
[359680435,1746246642169,-450.0,0.00019578,2]
[359680436,1746246642179,-450.0,0.00019578,2]
[359680437,1746246642188,-450.0,0.00019578,2]
[359680438,1746246642197,-567.27,0.00019578,2]
[359680439,1746246642207,-450.0,0.00019578,2]
[359680440,1746246642217,-450.0,0.00019578,2]
[359680441,1746246642226,-503.91,0.00019578,2]
[359680442,1746246642236,-222.33032389,0.00019578,2]
[359680443,1746246642245,-450.0,0.00019578,2]
[359680444,1746246642254,-380.49834359,0.00019578,2]
[359680445,1746246642263,-1075.83,0.00019578,2]
[359680446,1746246642273,-450.0,0.00019578,2]
[359680447,1746246642282,-450.0,0.00019578,2]
[359680448,1746246642291,-450.0,0.00019578,2]
[359680449,1746246642301,-312.69658061,0.00019578,2]
[359680450,1746246642310,-450.0,0.00019578,2]
[359680451,1746246642320,-450.0,0.00019578,2]
[359680452,1746246642329,-450.0,0.00019578,2]
[359680453,1746246642339,-566.64,0.00019578,2]
[359680454,1746246642348,-465.94904646,0.00019578,2]
[359680455,1746246642358,-575.34,0.00019578,2]
[359680456,1746246642368,-450.0,0.00019578,2]
[359680457,1746246642377,-450.0,0.00019578,2]
[359680458,1746246642388,-450.0,0.00019578,2]
[359680459,1746246642398,-1437.18,0.00019578,2]
[359680460,1746246642407,-450.0,0.00019578,2]
[359680462,1746246642417,-450.0,0.00019578,2]
[359680463,1746246642427,-450.0,0.00019578,2]
[359680465,1746246642437,-450.0,0.00019578,2]
[359680467,1746246642446,-712.59,0.00019578,2]
[359680468,1746246642455,-450.0,0.00019578,2]
[359680469,1746246642465,-612.19,0.00019578,2]
[359680470,1746246642474,-450.0,0.00019578,2]
[359680471,1746246642484,-545.69,0.00019578,2]
[359680472,1746246642493,-450.0,0.00019578,2]
[359680473,1746246642502,-503.9,0.00019578,2]
[359680474,1746246642511,-450.0,0.00019578,2]
[359680475,1746246642520,-450.0,0.00019578,2]
[359680476,1746246642529,-450.0,0.00019578,2]
[359680477,1746246642539,-551.57,0.00019578,2]
[359680479,1746246642548,-232.03197545,0.00019578,2]
[359680481,1746246642558,-450.0,0.00019578,2]
[359680483,1746246642567,-450.0,0.00019578,2]
[359680485,1746246642576,-450.0,0.00019578,2]
[359680487,1746246642585,-450.0,0.00019578,2]
[359680489,1746246642594,-450.0,0.00019578,2]
[359680491,1746246642603,-573.59694529,0.00019578,2]
[359680492,1746246642612,-699.18,0.00019578,2]
[359680494,1746246642621,-450.0,0.00019578,2]
[359680496,1746246642631,-450.0,0.00019578,2]
[359680498,1746246642640,-450.0,0.00019578,2]
[359680499,1746246642649,-450.0,0.00019578,2]
[359680500,1746246642659,-450.0,0.00019578,2]
[359680501,1746246642668,-752.0,0.00019578,2]
[359680502,1746246642678,-585.04,0.00019578,2]
[359680503,1746246642687,-1720.83,0.00019578,2]
[359680504,1746246642696,-742.65,0.00019578,2]
[359680505,1746246642706,-450.0,0.00019578,2]
[359680506,1746246642715,-450.0,0.00019578,2]
[359680507,1746246642724,-450.0,0.00019578,2]
[359680508,1746246642734,-498.21,0.00019578,2]
[359680509,1746246642743,-585.16,0.00019578,2]
[359680510,1746246642753,-663.64,0.00019578,2]
[359680511,1746246642762,-450.0,0.00019578,2]
[359680512,1746246642772,-450.0,0.00019578,2]
[359680513,1746246642782,-450.0,0.00019578,2]
[359680514,1746246642791,-450.0,0.00019578,2]
[359680515,1746246642800,-334.85993224,0.00019578,2]
[359680516,1746246642810,-450.0,0.00019578,2]
[359680517,1746246642819,-755.25,0.00019578,2]
[359680518,1746246642828,-1168.72,0.00019578,2]
[359680519,1746246642837,-450.0,0.00019578,2]
[359680520,1746246642846,-450.0,0.00019578,2]
[359680521,1746246642856,-481.37865192,0.00019578,2]
[359680522,1746246642865,-450.0,0.00019578,2]
[359680523,1746246642874,-450.0,0.00019578,2]
[359680524,1746246642883,-450.0,0.00019578,2]
[359680525,1746246642892,-560.08,0.00019578,2]
[359680526,1746246642902,-450.0,0.00019578,2]
[359680527,1746246642911,-450.0,0.00019578,2]
[359680528,1746246642920,-568.95,0.00019578,2]
[359680529,1746246642930,-291.31094517,0.00019578,2]
[359680530,1746246642939,-450.0,0.00019578,2]
[359680531,1746246642948,-450.0,0.00019578,2]
[359680532,1746246642958,-450.0,0.00019578,2]
[359680533,1746246642968,-450.0,0.00019578,2]
[359680534,1746246642977,-457.06505476,0.00019578,2]
[359680535,1746246642987,-450.0,0.00019578,2]
[359680536,1746246642997,-993.17,0.00019578,2]
[359680537,1746246643006,-450.0,0.00019578,2]
[359680538,1746246643016,-450.0,0.00019578,2]
[359680539,1746246643026,-450.0,0.00019578,2]
[359680540,1746246643036,-450.0,0.00019578,2]
[359680541,1746246643045,-1432.92,0.00019578,2]
[359680542,1746246643054,-516.14,0.00019578,2]
[359680543,1746246643064,-450.0,0.00019578,2]
[359680545,1746246643074,-497.75,0.00019578,2]
[359680547,1746246643083,-450.0,0.00019578,2]
[359680549,1746246643092,-450.0,0.00019578,2]
[359680552,1746246643101,-604.28,0.00019578,2]
[359680554,1746246643111,-450.0,0.00019578,2]
[359680556,1746246643120,-367.45052593,0.00019578,2]
[359680558,1746246643129,-450.0,0.00019578,2]
[359680561,1746246643139,-450.0,0.00019578,2]
[359680563,1746246643148,-450.0,0.00019578,2]
[359680567,1746246643158,-632.47,0.00019578,2]
[359680569,1746246643168,-1648.11,0.00019578,2]
[359680571,1746246643178,-450.0,0.00019578,2]
[359680573,1746246643188,-450.0,0.00019578,2]
[359680575,1746246643198,-450.0,0.00019578,2]
[359680577,1746246643207,-680.06,0.00019578,2]
[359680579,1746246643216,-450.0,0.00019578,2]
[359680581,1746246643226,-450.0,0.00019578,2]
[359680583,1746246643235,-808.75,0.00019578,2]
[359680584,1746246643244,-489.93000742,0.00019578,2]
[359680586,1746246643254,-461.61160083,0.00019578,2]
[359680588,1746246643263,-456.28960319,0.00019578,2]
[359680590,1746246643273,-450.0,0.00019578,2]
[359680592,1746246643283,-450.0,0.00019578,2]
[359680594,1746246643292,-450.0,0.00019578,2]
[359680596,1746246643302,-450.0,0.00019578,2]
[359680598,1746246643314,-463.62,0.00019578,2]
[359680600,1746246643324,-462.88,0.00019578,2]
[359680602,1746246643333,-510.1275576,0.00019578,2]
[359680604,1746246643343,-977.42,0.00019578,2]
[359680606,1746246643352,-902.26,0.00019578,2]
[359680608,1746246643361,-450.0,0.00019578,2]
[359680610,1746246643370,-450.0,0.00019578,2]
[359680612,1746246643380,-818.31,0.00019578,2]
[359680614,1746246643389,-450.0,0.00019578,2]
[359680616,1746246643399,-450.0,0.00019578,2]
[359680618,1746246643408,-1076.72,0.00019578,2]
[359680620,1746246643417,-467.7110541,0.00019578,2]
[359680622,1746246643427,-450.0,0.00019578,2]
[359680624,1746246643437,-4493.69,0.00019578,2]
[359680626,1746246643446,-450.0,0.00019578,2]
[359680628,1746246643455,-548.9,0.00019578,2]
[359680630,1746246643465,-450.0,0.00019578,2]
[359680632,1746246643474,-450.0,0.00019578,2]
[359680634,1746246643484,-258.20845104,0.00019578,2]
[359680636,1746246643493,-81628.11,0.00019578,2]
[359680638,1746246643502,-558.66,0.00019578,2]
[359680640,1746246643511,-450.0,0.00019578,2]
[359680642,1746246643520,-450.0,0.00019578,2]
[359680644,1746246643530,-450.0,0.00019578,2]
[359680646,1746246643539,-4831.13,0.00019578,2]
[359680647,1746246643549,-2480.99,0.00019578,2]
[359680649,1746246643558,-450.0,0.00019578,2]
[359680651,1746246643568,-27671.24,0.00019578,2]
[359680653,1746246643577,-745.52,0.00019578,2]
[359680655,1746246643587,-1087.32,0.00019578,2]
[359680657,1746246643596,-450.0,0.00019578,2]
[359680659,1746246643606,-1820.53,0.00019578,2]
[359680661,1746246643615,-604.02,0.00019578,2]
[359680663,1746246643625,-450.0,0.00019578,2]
[359680666,1746246643634,-450.0,0.00019578,2]
[359680667,1746246643643,-794.37,0.00019578,2]
[359680669,1746246643653,-15516.38,0.00019578,2]
[359680671,1746246643662,-2238.11,0.00019578,2]
[359680673,1746246643672,-300.0,0.00019578,2]
[359680675,1746246643681,-712.48,0.00019578,2]
[359680677,1746246643690,-486.43,0.00019578,2]
[359680680,1746246643701,-166.88735199,0.00019578,2]
[359680682,1746246643710,-450.0,0.00019578,2]
[359680684,1746246643720,-450.0,0.00019578,2]
[359680686,1746246643729,-450.0,0.00019578,2]
[359680687,1746246643739,-450.0,0.00019578,2]
[359680690,1746246643748,-450.0,0.00019578,2]
[359680692,1746246643758,-450.0,0.00019578,2]
[359680694,1746246643767,-588.96,0.00019578,2]
[359680695,1746246643777,-450.0,0.00019578,2]
[359680697,1746246643786,-455.06729876,0.00019578,2]
[359680699,1746246643795,-450.0,0.00019578,2]
[359680701,1746246643805,-450.0,0.00019578,2]
[359680703,1746246643814,-450.0,0.00019578,2]
[359680705,1746246643823,-450.0,0.00019578,2]
[359680707,1746246643833,-2649.35,0.00019578,2]
[359680709,1746246643842,-450.0,0.00019578,2]
[359680711,1746246643851,-469.79272155,0.00019578,2]
[359680713,1746246643861,-450.0,0.00019578,2]
[359680715,1746246643870,-450.0,0.00019578,2]
[359680717,1746246643880,-450.0,0.00019578,2]
[359680719,1746246643889,-499.31,0.00019578,2]
[359680721,1746246643899,-450.0,0.00019578,2]
[359680723,1746246643908,-455.94,0.00019578,2]
[359680725,1746246643918,-450.0,0.00019578,2]
[359680727,1746246643928,-461.16882008,0.00019578,2]
[359680729,1746246643937,-1040.89,0.00019578,2]
[359680731,1746246643947,-450.0,0.00019578,2]
[359680733,1746246643956,-450.0,0.00019578,2]
[359680735,1746246643966,-450.0,0.00019578,2]
[359680737,1746246643976,-450.0,0.00019578,2]
[359680739,1746246643989,-1081.24,0.00019578,2]
[359680741,1746246643999,-412.52998212,0.00019578,2]
[359680743,1746246644008,-450.0,0.00019578,2]
[359680745,1746246644018,-515.53,0.00019578,2]
[359680747,1746246644028,-450.0,0.00019578,2]
[359680749,1746246644037,-450.0,0.00019578,2]
[359680751,1746246644046,-450.0,0.00019578,2]
[359680753,1746246644056,-450.0,0.00019578,2]
[359680755,1746246644065,-1000.0,0.00019578,2]
[359680757,1746246644075,-1000.0,0.00019578,2]
[359680759,1746246644084,-1000.0,0.00019578,2]
[359680761,1746246644094,-1000.0,0.00019578,2]
[359680763,1746246644103,-1000.0,0.00019578,2]
[359680765,1746246644112,-1000.0,0.00019578,2]
[359680767,1746246644121,-1000.0,0.00019578,2]
[359680769,1746246644130,-1000.0,0.00019578,2]
[359680771,1746246644139,-1000.0,0.00019578,2]
[359680773,1746246644149,-1000.0,0.00019578,2]
[359680775,1746246644159,-1000.0,0.00019578,2]
[359680777,1746246644168,-1057.0,0.00019578,2]
[359680779,1746246644177,-1000.0,0.00019578,2]
[359680781,1746246644186,-1000.0,0.00019578,2]
[359680783,1746246644196,-1000.0,0.00019578,2]
[359680785,1746246644205,-1000.0,0.00019578,2]
[359680787,1746246644215,-1000.0,0.00019578,2]
[359680789,1746246644224,-1000.0,0.00019578,2]
[359680791,1746246644233,-1000.0,0.00019578,2]
[359680792,1746246644243,-1000.0,0.00019578,2]
[359680794,1746246644252,-1000.0,0.00019578,2]
[359680796,1746246644261,-1000.0,0.00019578,2]
[359680799,1746246644272,-1000.0,0.00019578,2]
[359680801,1746246644281,-1000.0,0.00019578,2]
[359680803,1746246644291,-1000.0,0.00019578,2]
[359680805,1746246644301,-1000.0,0.00019578,2]
[359680806,1746246644310,-1000.0,0.00019578,2]
[359680809,1746246644320,-1000.0,0.00019578,2]
[359680811,1746246644329,-1000.0,0.00019578,2]
[359680812,1746246644339,-1000.0,0.00019578,2]
[359680814,1746246644348,-1000.0,0.00019578,2]
[359680817,1746246644358,-1000.0,0.00019578,2]
[359680819,1746246644368,-1000.0,0.00019578,2]
[359680821,1746246644378,-1000.0,0.00019578,2]
[359680822,1746246644387,-1000.0,0.00019578,2]
[359680824,1746246644398,-1000.0,0.00019578,2]
[359680826,1746246644408,-1000.0,0.00019578,2]
[359680828,1746246644418,-1000.0,0.00019578,2]
[359680831,1746246644428,-1000.0,0.00019578,2]
[359680833,1746246644438,-1000.0,0.00019578,2]
[359680855,1746246644638,-1000.0,0.00019578,2]
[359680858,1746246644648,-1000.0,0.00019578,2]
[359680859,1746246644657,-1000.0,0.00019578,2]
[359680861,1746246644668,-1000.0,0.00019578,2]
[359680863,1746246644678,-1000.0,0.00019578,2]
[359680866,1746246644689,-1000.0,0.00019578,2]
[359680868,1746246644698,-1000.0,0.00019578,2]
[359680869,1746246644707,-1000.0,0.00019578,2]
[359680871,1746246644717,-1000.0,0.00019578,2]
[359680873,1746246644726,-1000.0,0.00019578,2]
[359680876,1746246644736,-1000.0,0.00019578,2]
[359680878,1746246644745,-1000.0,0.00019578,2]
[359680880,1746246644755,-1000.0,0.00019578,2]
[359680881,1746246644764,-1000.0,0.00019578,2]
[359680884,1746246644775,-1000.0,0.00019578,2]
[359680886,1746246644786,-1000.0,0.00019578,2]
[359680888,1746246644795,-1000.0,0.00019578,2]
[359680890,1746246644805,-1000.0,0.00019578,2]
[359680892,1746246644815,-1000.0,0.00019578,2]
[359680894,1746246644824,-1000.0,0.00019578,2]
[359680896,1746246644833,-1000.0,0.00019578,2]
[359680898,1746246644843,-1000.0,0.00019578,2]
[359680900,1746246644852,-1000.0,0.00019578,2]
[359680902,1746246644862,-1000.0,0.00019578,2]
[359680904,1746246644872,-1000.0,0.00019578,2]
[359680906,1746246644882,-1000.0,0.00019578,2]
[359680908,1746246644891,-1000.0,0.00019578,2]
[359680910,1746246644901,-1000.0,0.00019578,2]
[359680912,1746246644910,-1000.0,0.00019578,2]
[359680914,1746246644919,-1000.0,0.00019578,2]
[359680915,1746246644928,-1000.0,0.00019578,2]
[359680918,1746246644939,-1000.0,0.00019578,2]
[359680919,1746246644948,-1000.0,0.00019578,2]
[359680921,1746246644957,-6965.55,0.00019578,2]
[359680923,1746246644966,-150.99,0.00019578,2]
[359680925,1746246644975,-1538.66,0.00019578,2]
[359680927,1746246644985,-999.99,0.00019578,2]
[359680929,1746246644995,-3973.74,0.00019578,2]
[359680931,1746246645005,-452.00734145,0.00019579,2]
[359680933,1746246645014,-450.0,0.00019579,2]
[359680935,1746246645023,-171.7368711,0.00019579,2]
[359680937,1746246645033,-450.0,0.00019579,2]
[359680939,1746246645042,-15347.64,0.00019579,2]
[359680941,1746246645051,-17033.79,0.00019579,2]
[359680943,1746246645061,-2056.37,0.00019579,2]
[359680945,1746246645071,-9839.41,0.00019579,2]
[359680947,1746246645080,-499.99,0.00019579,2]